bitfinex-derivatives/quotes_BNBF0:USTF0_20251219
["timestamp","ask_amount","ask_price","bid_price","bid_amount"]
[1766124015336,0.20727858,839.69,838.82,1.18631226]
[1766124016434,0.20727858,839.69,838.83,1.18631226]
[1766124017333,0.20727858,839.69,838.84,1.18631226]
[1766124018334,0.20727858,839.69,838.85,1.18631226]
[1766124020034,0.20727858,839.69,838.84,1.18631226]
[1766124020738,0.20727858,839.69,838.85,1.91]
[1766124022038,9.02021956,839.69,838.85,1.91]
[1766124040161,1.19241409,839.68,838.85,1.91]
[1766124040452,9.02021956,839.69,838.85,1.91]
[1766124071873,8.81294098,839.69,838.91,1.18631226]
[1766124072078,8.81294098,839.69,838.94,1.18631226]
[1766124073773,8.81294098,839.69,838.93,1.18631226]
[1766124075979,8.81294098,839.69,838.94,2.731]
[1766124132121,8.81294098,839.69,838.84,12.99627985]
[1766124142633,0.20727364,839.86,838.81,1.18631226]
[1766124144338,0.20727364,839.86,838.84,1.18631226]
[1766124145539,0.20727364,839.86,838.84,14.0225903]
[1766124146039,0.20727364,839.86,838.85,1.18631226]
[1766124146444,0.20727364,839.86,838.86,1.18631226]
[1766124147245,0.20727364,839.86,838.87,1.18631226]
[1766124147847,0.20727364,839.86,838.86,1.18631226]
[1766124148247,0.20727364,839.86,838.87,1.18631226]
[1766124158259,0.20727364,839.86,838.97,1.18631226]
[1766124158660,0.20727364,839.86,838.96,1.18631226]
[1766124160357,0.20727364,839.86,838.84,12.83627804]
[1766124160358,0.20727364,839.86,838.95,1.18631226]
[1766124160561,0.20727364,839.86,838.98,1.18631226]
[1766124161358,0.20727364,839.86,838.97,1.18631226]
[1766124162161,0.20727364,839.86,838.98,1.18631226]
[1766124162361,0.20727364,839.86,838.84,12.83627804]
[1766124162362,0.20727364,839.86,838.97,1.18631226]
[1766124162559,0.88967821,840.4,839.06,1.18631226]
[1766124162764,0.20721254,839.98,839.06,1.18631226]
[1766124162964,8.94368965,839.98,839.07,1.18631226]
[1766124163157,8.94368965,839.98,839.06,1.18631226]
[1766124163462,9.15089047,839.98,839.06,1.18631226]
[1766124163663,9.15089047,839.98,839.09,1.18631226]
[1766124164259,9.15089047,839.98,839.08,1.18631226]
[1766124165063,9.15089047,839.98,839.09,1.18631226]
[1766124165266,8.94368965,839.98,839.09,1.18631226]
[1766124166063,8.94368965,839.98,839.12,1.18631226]
[1766124166263,8.94368965,839.98,839.11,1.18631226]
[1766124167263,8.94368965,839.98,839.1,1.18631226]
[1766124168465,8.94368965,839.98,839.09,1.18631226]
[1766124169264,8.94368965,839.98,839.08,1.18631226]
[1766124171166,8.94368965,839.98,839.07,1.18631226]
[1766124172165,8.94368965,839.98,839.06,1.18631226]
[1766124172366,8.94368965,839.98,839.01,1.18631226]
[1766124173464,8.94368965,839.98,838.95,1.18631226]
[1766124174467,8.94368965,839.98,838.93,1.18631226]
[1766124176266,8.94368965,839.98,838.94,1.18631226]
[1766124176869,8.94368965,839.98,838.92,1.18631226]
[1766124177163,8.94368965,839.98,838.91,1.18631226]
[1766124177364,8.94368965,839.98,838.89,1.18631226]
[1766124177669,8.94368965,839.98,838.84,12.83627804]
[1766124179168,8.94368965,839.98,838.85,2.966]
[1766124194186,8.94368965,839.98,838.84,12.83627804]
[1766124197991,8.94368965,839.98,838.85,1.98]
[1766124199190,1.1920362,839.97,838.85,1.98]
[1766124199490,0.88967821,839.94,838.85,1.98]
[1766124199788,1.1920362,839.93,838.85,1.98]
[1766124200494,1.1920362,839.92,838.85,1.98]
[1766124200794,1.1920362,839.91,838.85,1.98]
[1766124200994,1.1920362,839.9,838.85,1.98]
[1766124201198,0.88967821,839.94,838.85,1.98]
[1766124201394,1.19222957,839.93,838.85,1.98]
[1766124202499,1.19222957,839.92,838.85,1.98]
[1766124202694,1.19222957,839.91,838.85,1.98]
[1766124202899,0.88967821,839.95,838.85,1.98]
[1766124203195,1.19222991,839.94,838.85,1.98]
[1766124204701,1.19222991,839.93,838.85,1.98]
[1766124204897,1.19222991,839.92,838.85,1.98]
[1766124205201,0.88967821,839.96,838.85,1.98]
[1766124205501,1.19223061,839.95,838.85,1.98]
[1766124207504,1.19223061,839.94,838.85,1.98]
[1766124207802,1.19223061,839.93,838.85,1.98]
[1766124208103,0.88967821,839.97,838.85,1.98]
[1766124208306,1.19222992,839.96,838.85,1.98]
[1766124209404,1.19222992,839.95,838.85,1.98]
[1766124209604,1.19222992,839.94,838.85,1.98]
[1766124209805,9.83336786,839.98,838.85,1.98]
[1766124210005,1.1922295,839.97,838.85,1.98]
[1766124212106,8.94368965,839.98,838.85,1.98]
[1766124212304,1.19220318,839.97,838.85,1.98]
[1766124214106,8.94368965,839.98,838.85,1.98]
[1766124226121,1.19219064,839.97,838.85,1.98]
[1766124229221,2.08186885,839.97,838.85,1.98]
[1766124229422,1.19219064,839.96,838.85,1.98]
[1766124230218,0.88967821,839.95,838.85,1.98]
[1766124230418,1.19219064,839.94,838.85,1.98]
[1766124231219,0.88967821,839.93,838.85,1.98]
[1766124231422,1.19219064,839.92,838.85,1.98]
[1766124232123,2.08186885,839.92,838.85,1.98]
[1766124232320,2.08186885,839.91,838.85,1.98]
[1766124232518,1.19219064,839.9,838.85,1.98]
[1766124233122,0.88967821,839.89,838.85,1.98]
[1766124233325,0.88967821,839.82,838.85,1.98]
[1766124233625,2.08186885,839.81,838.85,1.98]
[1766124233825,1.19219064,839.8,838.85,1.98]
[1766124234222,0.88967821,839.79,838.85,1.98]
[1766124234420,1.19219064,839.78,838.85,1.98]
[1766124234624,1.19219064,839.77,838.85,1.98]
[1766124234825,1.19219064,839.76,838.85,1.98]
[1766124235123,1.19232007,839.75,838.85,1.98]
[1766124235320,0.88967821,839.78,838.85,1.98]
[1766124235524,1.19232016,839.77,838.85,1.98]
[1766124236321,0.88967821,839.76,838.85,1.98]
[1766124236522,1.19232016,839.75,838.85,1.98]
[1766124237325,2.08199837,839.75,838.85,1.98]
[1766124237522,0.88967821,839.64,838.85,1.98]
[1766124237726,1.19232016,839.63,838.85,1.98]
[1766124239424,1.19232016,839.62,838.85,1.98]
[1766124239627,1.19232016,839.61,838.85,1.98]
[1766124239827,0.88967821,839.65,838.85,1.98]
[1766124240028,1.19249016,839.64,838.85,1.98]
[1766124242531,1.19249016,839.63,838.85,1.98]
[1766124242728,0.89177239,839.66,838.85,1.98]
[1766124242931,1.19248997,839.65,838.85,1.98]
[1766124244532,1.19248997,839.64,838.85,1.98]
[1766124244833,0.89177239,839.67,838.85,1.98]
[1766124245034,1.19248294,839.66,838.85,1.98]
[1766124245428,1.19248294,839.65,838.85,1.98]
[1766124245727,0.89177239,839.61,838.85,1.98]
[1766124246030,1.19248294,839.6,838.84,12.83627804]
[1766124246533,1.19248294,839.59,838.84,12.83627804]
[1766124246829,0.89177239,839.62,838.84,12.83627804]
[1766124247033,1.19257277,839.61,838.84,12.83627804]
[1766124247433,1.19257277,839.6,838.84,12.83627804]
[1766124247631,0.89177239,839.63,838.84,12.83627804]
[1766124247830,1.19257272,839.62,838.84,12.83627804]
[1766124249732,1.19257272,839.61,838.85,2.969]
[1766124249931,1.19257272,839.6,838.85,2.969]
[1766124250133,0.89177239,839.64,838.85,2.969]
[1766124250330,1.19257272,839.63,838.85,2.969]
[1766124255338,2.08434511,839.63,838.85,2.969]
[1766124255533,1.19257272,839.62,838.85,2.969]
[1766124256439,1.19257272,839.61,838.85,2.969]
[1766124256639,0.89177239,839.63,838.85,2.969]
[1766124256839,1.19257263,839.62,838.85,2.969]
[1766124260442,1.19257263,839.61,838.85,2.969]
[1766124260642,1.19257263,839.6,838.85,2.969]
[1766124260842,0.89177239,839.64,838.85,2.969]
[1766124261142,1.19257263,839.63,838.85,2.969]
[1766124262241,1.19257263,839.62,838.85,2.969]
[1766124262543,0.89177239,839.65,838.85,2.969]
[1766124262840,1.19255975,839.64,838.85,2.969]
[1766124263443,1.19255975,839.63,838.85,2.969]
[1766124263644,1.19255975,839.62,838.85,2.969]
[1766124263841,0.89177239,839.65,838.85,2.969]
[1766124264141,1.19255975,839.64,838.85,2.969]
[1766124270049,1.19255975,839.63,838.85,2.969]
[1766124270346,0.89177239,839.67,838.85,2.969]
[1766124270551,1.1925205,839.66,838.85,2.969]
[1766124270751,1.1925205,839.65,838.85,2.969]
[1766124270950,0.89177239,839.68,838.85,2.969]
[1766124271148,1.1925205,839.67,838.85,2.969]
[1766124273449,2.08429289,839.67,838.85,2.969]
[1766124273654,1.1925205,839.66,838.85,2.969]
[1766124275354,2.08429289,839.66,838.85,2.969]
[1766124275656,1.1925205,839.65,838.85,2.969]
[1766124276953,1.1925205,839.65,838.47,1.18631226]
[1766124277656,2.08429289,839.65,838.46,1.18631226]
[1766124277857,1.1925205,839.64,838.46,1.18631226]
[1766124278358,1.1925205,839.64,838.47,1.18631226]
[1766124278853,1.1925205,839.64,838.31,0.20726993]
[1766124278854,0.89177239,839.62,838.45,1.18631226]
[1766124279152,1.1925205,839.61,838.45,1.18631226]
[1766124279354,1.1925205,839.61,838.46,2.909]
[1766124281158,2.08429289,839.61,838.46,2.909]
[1766124281458,1.1925205,839.6,838.46,2.909]
[1766124282258,2.08429289,839.6,838.46,2.909]
[1766124282459,1.1925205,839.59,838.46,2.909]
[1766124282660,0.89177239,839.55,838.46,2.909]
[1766124282856,1.1925205,839.54,838.46,2.909]
[1766124283657,0.89177239,839.53,838.46,2.909]
[1766124283855,2.08429289,839.52,838.46,2.909]
[1766124284156,1.1925205,839.51,838.46,2.909]
[1766124284559,0.89177239,839.49,838.46,2.909]
[1766124284755,0.89177239,839.4,838.46,2.909]
[1766124284961,1.19274598,839.39,838.46,2.909]
[1766124285661,1.19274598,839.38,838.46,2.909]
[1766124285856,1.19286923,839.37,838.46,2.909]
[1766124286062,0.89177239,839.34,838.46,2.909]
[1766124286263,1.19286923,839.33,838.46,2.909]
[1766124286559,1.19286923,839.32,838.46,2.909]
[1766124286758,0.89177239,839.35,838.46,2.909]
[1766124286957,1.19296042,839.34,838.46,2.909]
[1766124287362,2.08473281,839.34,838.46,2.909]
[1766124287562,1.19296042,839.33,838.46,2.909]
[1766124288459,2.08473281,839.32,838.46,2.909]
[1766124288663,0.89177239,839.26,838.46,2.909]
[1766124288860,1.19296042,839.25,838.46,2.909]
[1766124289462,1.19296042,839.24,838.46,2.909]
[1766124289660,0.89177239,839.27,838.46,2.909]
[1766124289860,1.19309525,839.26,838.46,2.909]
[1766124290362,0.89177239,839.16,838.46,2.909]
[1766124290564,0.89177239,839.09,838.46,2.909]
[1766124290762,1.19309525,839.08,838.46,2.909]
[1766124291563,0.89177239,839.11,838.46,2.909]
[1766124291865,2.08514625,839.1,838.46,2.909]
[1766124292165,1.19337386,839.09,838.46,2.909]
[1766124292660,0.89177239,839.12,838.46,2.909]
[1766124292866,1.19338666,839.11,838.46,2.909]
[1766124293664,1.19338666,839.1,838.46,2.909]
[1766124293866,0.89177239,839.14,838.46,2.909]
[1766124294167,1.1933868,839.13,838.46,2.909]
[1766124294562,1.1933868,839.12,838.46,2.909]
[1766124294763,0.89177239,839.16,838.46,2.909]
[1766124295066,1.1933868,839.15,838.46,2.909]
[1766124295563,1.1933868,839.14,838.08,20.82809127]
[1766124295767,0.89177239,839.18,838.08,20.82809127]
[1766124296064,1.19337956,839.17,838.08,20.82809127]
[1766124296466,1.19337956,839.16,838.08,20.82809127]
[1766124296666,1.19337956,839.15,838.08,20.82809127]
[1766124296864,0.89177239,839.19,838.08,20.82809127]
[1766124297168,1.19338661,839.18,838.08,20.82809127]
[1766124297571,0.89177239,839.2,838.08,20.82809127]
[1766124297572,1.19338661,839.17,838.08,20.82809127]
[1766124297766,1.19338661,839.16,838.08,20.82809127]
[1766124297967,0.89177239,839.2,838.09,2.676]
[1766124298268,1.19338583,839.19,838.09,2.676]
[1766124298466,1.19338583,839.18,838.09,2.676]
[1766124298672,1.19338583,839.17,838.09,2.676]
[1766124298869,0.89177239,839.21,838.09,2.676]
[1766124299172,1.19338583,839.2,838.09,2.676]
[1766124299672,0.89177239,839.22,838.09,2.676]
[1766124299673,1.19338583,839.19,838.09,2.676]
[1766124299873,1.19338583,839.18,838.09,2.676]
[1766124300069,0.89177239,839.22,838.09,2.676]
[1766124300269,1.19338587,839.21,838.09,2.676]
[1766124300474,0.89177239,839.28,838.09,2.676]
[1766124300671,1.19330746,839.27,838.09,2.676]
[1766124300870,1.19330746,839.26,838.09,2.676]
[1766124301070,1.19330746,839.25,838.09,2.676]
[1766124301270,0.89177239,839.3,838.09,2.676]
[1766124301471,1.19326907,839.29,838.09,2.676]
[1766124301969,1.19326907,839.28,838.09,2.676]
[1766124302172,1.19326907,839.27,838.09,2.676]
[1766124302371,0.89177239,839.32,838.09,2.676]
[1766124302575,1.19326865,839.31,838.09,2.676]
[1766124303877,0.89177239,839.36,838.09,2.676]
[1766124304074,1.19321747,839.35,838.09,2.676]
[1766124304674,0.89177239,839.38,838.09,2.676]
[1766124304878,1.19318514,839.37,838.09,2.676]
[1766124305073,11.3719563,839.41,838.09,2.676]
[1766124305278,1.19314596,839.4,838.09,2.676]
[1766124306575,1.19313288,839.39,838.09,2.676]
[1766124306780,1.19313288,839.38,838.09,2.676]
[1766124306980,10.48018391,839.41,838.09,2.676]
[1766124310782,10.48018391,839.41,838.12,1.18631226]
[1766124312184,10.48018391,839.41,838.1,0.20743425]
[1766124313581,10.48018391,839.41,838.14,1.18631226]
[1766124315181,10.48018391,839.41,838.13,1.18631226]
[1766124315386,10.48018391,839.41,838.14,1.18631226]
[1766124315886,10.48018391,839.41,838.13,1.18631226]
[1766124319286,10.48018391,839.41,838.14,1.18631226]
[1766124319785,10.48018391,839.41,838.22,1.18631226]
[1766124321695,10.48018391,839.41,838.24,1.18631226]
[1766124323496,10.48018391,839.41,838.25,1.18631226]
[1766124323796,10.48018391,839.41,838.3,1.18631226]
[1766124324392,10.48018391,839.41,838.31,1.18631226]
[1766124324896,10.48018391,839.41,838.3,1.18631226]
[1766124325996,10.48018391,839.41,838.37,1.18631226]
[1766124326896,10.48018391,839.41,838.4,1.18631226]
[1766124329297,10.48018391,839.41,838.39,1.18631226]
[1766124329502,10.48018391,839.41,838.43,1.18631226]
[1766124329701,10.48018391,839.41,838.5,1.18631226]
[1766124330404,10.48018391,839.41,838.49,1.18631226]
[1766124330698,10.48018391,839.41,838.51,1.18631226]
[1766124331203,10.48018391,839.41,838.53,1.18631226]
[1766124331403,10.48018391,839.41,838.1,0.20743425]
[1766124331404,10.48018391,839.41,838.52,1.18631226]
[1766124332401,10.48018391,839.41,838.51,1.18631226]
[1766124333005,10.48018391,839.41,838.52,1.18631226]
[1766124333305,10.48018391,839.41,838.51,1.18631226]
[1766124333605,10.48018391,839.41,838.1,0.20743425]
[1766124333606,10.48018391,839.41,838.52,1.18631226]
[1766124334304,10.48018391,839.41,838.51,1.18631226]
[1766124335509,10.48018391,839.41,838.5,1.18631226]
[1766124336012,10.48018391,839.41,838.51,1.18631226]
[1766124336306,10.48018391,839.41,838.5,1.18631226]
[1766124336707,10.48018391,839.41,838.55,1.18631226]
[1766124337307,10.48018391,839.41,838.54,1.18631226]
[1766124338208,10.48018391,839.41,838.55,1.18631226]
[1766124338421,10.48018391,839.41,838.53,1.18631226]
[1766124339314,10.48018391,839.41,838.52,1.18631226]
[1766124340313,10.48018391,839.41,838.5,1.18631226]
[1766124341113,0.20721131,840.09,838.51,1.18631226]
[1766124341413,0.20721131,840.09,838.52,1.18631226]
[1766124341708,0.20721131,840.09,838.53,1.18631226]
[1766124341913,0.20721131,840.09,838.54,1.18631226]
[1766124342412,0.20721131,840.09,838.52,1.18631226]
[1766124342612,0.20721131,840.09,838.57,1.18631226]
[1766124342813,0.20721131,840.09,838.1,0.20743425]
[1766124342814,0.20721131,840.09,838.59,1.18631226]
[1766124343312,0.20721131,840.09,838.57,1.18631226]
[1766124344516,0.20721131,840.09,838.56,1.18631226]
[1766124345513,0.20721131,840.09,838.54,1.18631226]
[1766124346414,0.20721131,840.09,838.53,1.18631226]
[1766124347218,0.20721131,840.09,838.52,1.18631226]
[1766124347417,0.20721131,840.09,838.51,1.18631226]
[1766124348419,0.20721131,840.09,838.5,1.18631226]
[1766124349516,0.20721131,840.09,838.49,1.18631226]
[1766124350122,0.20721131,840.09,838.47,1.18631226]
[1766124353224,0.20721131,840.09,838.48,1.18631226]
[1766124354229,0.20721131,840.09,838.49,1.18631226]
[1766124356329,0.20721131,840.09,838.5,1.18631226]
[1766124357326,0.20721131,840.09,838.52,1.18631226]
[1766124358529,0.20721131,840.09,838.53,1.18631226]
[1766124359228,0.20721131,840.09,838.55,1.18631226]
[1766124359732,0.20721131,840.09,838.54,1.18631226]
[1766124361125,0.20721131,840.09,838.1,0.20743425]
[1766124361126,0.20721131,840.09,838.52,1.18631226]
[1766124361631,0.20721131,840.09,838.54,1.18631226]
[1766124362430,0.20721131,840.09,838.55,1.18631226]
[1766124362728,0.20721131,840.09,838.54,1.18631226]
[1766124363335,0.20721131,840.09,838.56,1.18631226]
[1766124363528,0.20721131,840.09,838.54,1.18631226]
[1766124364135,0.20721131,840.09,838.49,1.18631226]
[1766124364331,0.20721131,840.09,838.1,0.20743425]
[1766124364332,0.20721131,840.09,838.51,1.18631226]
[1766124364935,0.20721131,840.09,838.46,1.18631226]
[1766124365431,2.07919718,840.17,838.48,1.18631226]
[1766124365632,1.19199567,840.16,838.48,1.18631226]
[1766124365830,0.20730451,839.69,838.48,1.18631226]
[1766124366237,0.20730451,839.69,838.49,1.18631226]
[1766124366438,0.20730451,839.69,838.51,1.18631226]
[1766124367137,0.20730451,839.69,838.54,1.18631226]
[1766124367333,0.20730451,839.69,838.55,1.18631226]
[1766124368336,0.20730451,839.69,838.56,1.18631226]
[1766124368533,0.20730451,839.69,838.57,1.18631226]
[1766124368734,0.20730451,839.69,838.58,1.18631226]
[1766124369440,0.20730451,839.69,838.6,1.18631226]
[1766124370337,0.20730451,839.69,838.61,1.18631226]
[1766124371440,0.20730451,839.69,838.62,1.18631226]
[1766124372434,0.20730451,839.69,838.63,1.18631226]
[1766124373334,0.20730451,839.69,838.46,11.23739862]
[1766124373335,0.20730451,839.69,838.64,1.18631226]
[1766124374440,0.20730451,839.69,838.65,1.18631226]
[1766124375240,0.20730451,839.69,838.66,1.18631226]
[1766124376235,0.20730451,839.69,838.67,1.18631226]
[1766124376439,0.20730451,839.69,838.68,1.18631226]
[1766124377235,12.57304288,839.82,838.8,1.18631226]
[1766124377439,12.57304288,839.82,838.82,1.18631226]
[1766124377638,0.20728475,839.78,838.82,1.18631226]
[1766124378336,0.20728475,839.78,838.85,1.18631226]
[1766124378642,0.20728475,839.78,838.91,1.18631226]
[1766124379136,0.20728475,839.78,838.92,1.18631226]
[1766124379336,0.20728475,839.78,838.93,1.18631226]
[1766124380437,0.20728475,839.78,838.94,1.18631226]
[1766124381536,0.20728475,839.78,838.95,1.18631226]
[1766124382236,0.20728475,839.78,838.96,1.18631226]
[1766124383344,0.20728475,839.78,838.97,1.18631226]
[1766124384538,0.20728475,839.78,838.98,1.18631226]
[1766124385443,0.20728475,839.78,838.99,1.18631226]
[1766124386345,12.57304288,839.82,839.0,1.18631226]
[1766124386546,12.57304288,839.82,839.04,1.18631226]
[1766124387246,12.57304288,839.82,839.05,1.18631226]
[1766124388346,12.57304288,839.82,839.06,1.18631226]
[1766124389345,0.20725759,839.81,839.07,1.18631226]
[1766124390751,0.20725759,839.81,839.04,1.18631226]
[1766124390947,0.20725759,839.81,839.03,1.18631226]
[1766124392445,0.20725759,839.81,839.04,1.18631226]
[1766124398552,0.20725759,839.81,839.03,1.18631226]
[1766124399454,0.20725759,839.81,839.01,1.18631226]
[1766124400850,0.20725759,839.81,839.02,1.18631226]
[1766124403354,0.20725759,839.81,839.03,1.18631226]
[1766124404253,0.20725759,839.81,839.04,1.18631226]
[1766124405959,0.20725759,839.81,839.09,1.18631226]
[1766124407155,0.20725759,839.81,839.08,1.18631226]
[1766124407855,0.20725759,839.81,839.07,1.18631226]
[1766124408259,0.20725759,839.81,839.05,1.18631226]
[1766124409260,0.20725759,839.81,839.01,1.18631226]
[1766124411260,0.20725759,839.81,838.99,1.18631226]
[1766124412760,0.20725759,839.81,838.93,1.18631226]
[1766124413763,0.20725759,839.81,838.88,1.18631226]
[1766124413964,0.20725759,839.81,838.72,1.76250693]
[1766124413965,0.20725759,839.81,838.87,1.18631226]
[1766124414164,0.20725759,839.81,838.86,1.18631226]
[1766124415363,0.20725759,839.81,838.85,1.18631226]
[1766124418466,0.20725759,839.81,838.84,1.18631226]
[1766124420364,0.20725759,839.81,838.85,1.18631226]
[1766124421369,0.20725759,839.81,838.86,1.18631226]
[1766124421566,0.20725759,839.81,838.97,1.18631226]
[1766124422366,0.20725759,839.81,838.98,1.18631226]
[1766124423469,0.20725759,839.81,839.07,1.18631226]
[1766124425375,0.20725759,839.81,838.92,1.76250693]
[1766124425376,12.57304288,839.82,839.11,1.18631226]
[1766124425680,12.57304288,839.82,839.12,1.18631226]
[1766124426577,12.57304288,839.82,839.22,1.18631226]
[1766124427174,12.57304288,839.82,839.21,1.18631226]
[1766124427475,12.57304288,839.82,839.22,1.18631226]
[1766124427678,12.57304288,839.82,839.21,1.18631226]
[1766124430178,12.57304288,839.82,839.2,1.18631226]
[1766124430474,12.57304288,839.82,839.21,1.18631226]
[1766124431382,12.57304288,839.82,839.14,1.18631226]
[1766124433277,12.57304288,839.82,839.15,1.18631226]
[1766124435381,12.57304288,839.82,839.16,1.18631226]
[1766124435580,12.57304288,839.82,839.15,1.18631226]
[1766124435785,12.57304288,839.82,839.13,1.18631226]
[1766124436281,12.57304288,839.82,839.09,1.18631226]
[1766124438286,0.20725512,839.81,839.09,1.18631226]
[1766124438481,0.20725512,839.81,839.03,1.18631226]
[1766124439384,0.20725512,839.81,839.02,1.18631226]
[1766124439683,0.20725512,839.81,838.99,1.18631226]
[1766124439984,0.20725512,839.81,838.98,1.18631226]
[1766124440782,0.20725512,839.81,838.96,1.18631226]
[1766124443084,0.20725512,839.81,838.93,1.18631226]
[1766124443287,0.20725512,839.81,838.92,1.18631226]
[1766124444287,0.20725512,839.81,838.85,1.18631226]
[1766124445290,0.20725512,839.81,838.84,1.18631226]
[1766124446091,0.20725512,839.81,838.87,1.18631226]
[1766124446891,0.20725512,839.81,838.91,1.18631226]
[1766124450289,0.20725512,839.81,838.88,1.18631226]
[1766124450694,0.20725512,839.81,838.87,1.18631226]
[1766124451391,0.20725512,839.81,838.84,1.18631226]
[1766124451691,0.20725512,839.81,838.76,1.18631226]
[1766124452596,0.20725512,839.81,838.69,1.18631226]
[1766124453294,0.20725512,839.81,838.68,1.18631226]
[1766124454298,0.20725512,839.81,838.67,1.18631226]
[1766124455301,0.20725512,839.81,838.66,1.18631226]
[1766124456198,0.20725512,839.81,838.65,1.18631226]
[1766124457298,0.20725512,839.81,838.64,1.18631226]
[1766124458802,0.20725512,839.81,838.62,1.18631226]
[1766124459304,0.20725512,839.81,838.61,1.18631226]
[1766124460304,0.20725512,839.81,838.6,1.18631226]
[1766124460501,0.20725512,839.81,838.56,1.18631226]
[1766124461206,0.20725512,839.81,838.55,1.18631226]
[1766124462308,0.20725512,839.81,838.54,1.18631226]
[1766124463308,0.20725512,839.81,838.53,1.18631226]
[1766124463503,2.2905,839.81,838.47,2.324]
[1766124463706,1.19243079,839.8,838.47,2.324]
[1766124464502,0.89081409,839.77,838.47,2.324]
[1766124464708,1.19250769,839.76,838.47,2.324]
[1766124465408,1.19250769,839.75,838.47,2.324]
[1766124465601,1.19250769,839.74,838.47,2.324]
[1766124465902,1.19250769,839.73,838.47,2.324]
[1766124466103,0.89081409,839.77,838.47,2.324]
[1766124466406,1.19252057,839.76,838.47,2.324]
[1766124466608,1.19252057,839.75,838.47,2.324]
[1766124466808,1.19252057,839.74,838.47,2.324]
[1766124467003,0.89081409,839.78,838.47,2.324]
[1766124467204,1.19252057,839.77,838.47,2.324]
[1766124467405,0.89081409,839.75,838.47,2.324]
[1766124467601,1.19252057,839.74,838.47,2.324]
[1766124468405,1.19252057,839.73,838.47,2.324]
[1766124468603,2.08333466,839.73,838.47,2.324]
[1766124468906,1.19252057,839.72,838.47,2.324]
[1766124469107,1.19261843,839.71,838.47,2.324]
[1766124469303,0.89081409,839.75,838.47,2.324]
[1766124469607,1.19261843,839.74,838.47,2.324]
[1766124470508,1.19261843,839.73,838.47,2.324]
[1766124470707,1.19261843,839.72,838.47,2.324]
[1766124470908,0.89081409,839.76,838.47,2.324]
[1766124471107,1.19261862,839.75,838.47,2.324]
[1766124471503,1.19261862,839.74,838.47,2.324]
[1766124471702,1.19261862,839.73,838.47,2.324]
[1766124472003,0.89081409,839.77,838.47,2.324]
[1766124472209,2.08343271,839.76,838.47,2.324]
[1766124472411,0.89081409,839.6,838.47,2.324]
[1766124472606,1.19261862,839.59,838.47,2.324]
[1766124473407,0.89081409,839.56,838.47,2.324]
[1766124473612,1.19261862,839.55,838.47,2.324]
[1766124474511,1.19261862,839.54,838.47,2.324]
[1766124474712,0.89081409,839.52,838.47,2.324]
[1766124475012,1.19261862,839.51,838.47,2.324]
[1766124475408,1.19261862,839.5,838.47,2.324]
[1766124475712,1.19261862,839.49,838.47,2.324]
[1766124475909,2.08343271,839.48,838.47,2.324]
[1766124476114,1.19261862,839.47,838.47,2.324]
[1766124476510,1.19261862,839.46,838.47,2.324]
[1766124476714,1.19261862,839.45,838.47,2.324]
[1766124476916,0.89081409,839.52,838.47,2.324]
[1766124477110,0.89081409,839.58,838.47,2.324]
[1766124477412,1.19299001,839.57,838.47,2.324]
[1766124477612,1.19299001,839.56,838.47,2.324]
[1766124477914,1.19299001,839.55,838.47,2.324]
[1766124478112,1.19299001,839.54,838.47,2.324]
[1766124478416,0.89081409,839.61,838.47,2.324]
[1766124478616,1.19298615,839.6,838.47,2.324]
[1766124479517,1.19298615,839.59,838.47,2.324]
[1766124479817,1.19298615,839.58,838.47,2.324]
[1766124480013,0.89081409,839.64,838.47,2.324]
[1766124480218,0.89081409,839.72,838.47,2.324]
[1766124480417,1.19284359,839.71,838.47,2.324]
[1766124481416,1.19284359,839.7,838.04,0.01344377]
[1766124481616,1.19284359,839.69,837.99,0.20740705]
[1766124481818,1.19284359,839.68,837.99,0.20740705]
[1766124482115,0.89081409,839.77,837.99,0.20740705]
[1766124482319,1.19279207,839.76,837.99,0.20740705]
[1766124483717,1.19279207,839.75,837.99,0.20740705]
[1766124483915,1.19279207,839.74,837.99,0.20740705]
[1766124484115,1.19279207,839.73,837.99,0.20740705]
[1766124484416,1.19279207,839.72,838.0,2.652]
[1766124484619,1.19279207,839.71,838.0,2.652]
[1766124484823,0.89081409,839.78,838.0,2.652]
[1766124485019,1.19279234,839.77,838.0,2.652]
[1766124487222,2.08360643,839.77,838.0,2.652]
[1766124487422,1.19279234,839.76,838.0,2.652]
[1766124487618,1.19279234,839.75,838.0,2.652]